[Event "ONJK 2024 ABC"]
[Site "Velp, Netherlands"]
[Date "2024.08.05"]
[Round "4.19"]
[White "Lejzerowicz, Nathan"]
[Black "Formanoy, David"]
[Result "1-0"]
[TimeControl "90 minutes + 30 seconds"]
[WhiteElo "1668"]
[BlackElo "1686"]

1. c4 {[%clk 01:24:43]} {[%emt 00:06:16]} e5 {[%clk 01:30:56]} {[%emt
00:00:05]} 2. Nc3 {[%clk 01:24:53]} {[%emt 00:00:19]} Nf6 {[%clk 01:31:18]}
{[%emt 00:00:07]} 3. g3 {[%clk 01:25:10]} {[%emt 00:00:13]} Nc6 {[%clk
01:31:32]} {[%emt 00:00:16]} 4. Bg2 {[%clk 01:25:27]} {[%emt 00:00:13]} Bc5
{[%clk 01:31:34]} {[%emt 00:00:29]} 5. e3 {[%clk 01:25:41]} {[%emt 00:00:16]}
a6 {[%clk 01:31:23]} {[%emt 00:00:41]} 6. Nge2 {[%clk 01:25:54]} {[%emt
00:00:16]} d6 {[%clk 01:31:26]} {[%emt 00:00:27]} 7. O-O {[%clk 01:25:44]}
{[%emt 00:00:40]} Bg4 {[%clk 01:31:09]} {[%emt 00:00:47]} 8. h3 {[%clk
01:24:58]} {[%emt 00:01:16]} Bh5 {[%clk 01:31:25]} {[%emt 00:00:14]} 9. a3
{[%clk 01:25:07]} {[%emt 00:00:22]} O-O {[%clk 01:29:36]} {[%emt 00:02:19]} 10.
b4 {[%clk 01:24:45]} {[%emt 00:00:51]} Ba7 {[%clk 01:28:50]} {[%emt 00:01:17]}
11. d3 {[%clk 01:22:51]} {[%emt 00:02:24]} Rb8 {[%clk 01:28:36]} {[%emt
00:00:44]} 12. Qc2 {[%clk 01:21:22]} {[%emt 00:01:58]} Bg6 {[%clk 01:27:36]}
{[%emt 00:01:30]} 13. Bb2 {[%clk 01:18:50]} {[%emt 00:03:03]} Re8 {[%clk
01:26:57]} {[%emt 00:01:09]} 14. Nd5 {[%clk 01:15:25]} {[%emt 00:03:55]} Nxd5
{[%clk 01:26:15]} {[%emt 00:01:13]} 15. cxd5 {[%clk 01:11:44]} {[%emt
00:04:09]} Ne7 {[%clk 01:25:23]} {[%emt 00:01:23]} 16. e4 {[%clk 01:10:44]}
{[%emt 00:01:30]} Qd7 {[%clk 01:23:56]} {[%emt 00:01:57]} 17. Qc3 {[%clk
01:09:49]} {[%emt 00:01:24]} f6 {[%clk 01:22:32]} {[%emt 00:01:54]} 18. Kh2
{[%clk 01:08:34]} {[%emt 00:01:45]} Rbc8 {[%clk 01:18:23]} {[%emt 00:04:40]} 19.
Qb3 {[%clk 01:07:55]} {[%emt 00:01:08]} Bf7 {[%clk 01:18:18]} {[%emt 00:00:35]}
20. f4 {[%clk 01:03:07]} {[%emt 00:05:19]} Qd8 {[%clk 01:16:32]} {[%emt
00:02:16]} 21. Qa4 {[%clk 00:57:59]} {[%emt 00:05:38]} Ra8 {[%clk 01:15:33]}
{[%emt 00:01:29]} 22. Rac1 {[%clk 00:56:05]} {[%emt 00:02:24]} b5 {[%clk
01:15:28]} {[%emt 00:00:34]} 23. Qd1 {[%clk 00:54:02]} {[%emt 00:02:33]} Qd7
{[%clk 01:12:12]} {[%emt 00:03:47]} 24. fxe5 {[%clk 00:52:10]} {[%emt
00:02:22]} dxe5 {[%clk 01:12:24]} {[%emt 00:00:18]} 25. d4 {[%clk 00:51:51]}
{[%emt 00:00:49]} exd4 {[%clk 01:09:14]} {[%emt 00:03:40]} 26. Nxd4 {[%clk
00:51:13]} {[%emt 00:01:08]} Bxd4 {[%clk 01:08:36]} {[%emt 00:01:08]} 27. Bxd4
{[%clk 00:51:26]} {[%emt 00:00:16]} Red8 {[%clk 01:06:14]} {[%emt 00:02:53]} 28.
Bb2 {[%clk 00:50:16]} {[%emt 00:01:40]} c6 {[%clk 01:00:19]} {[%emt 00:06:25]}
29. dxc6 {[%clk 00:46:56]} {[%emt 00:03:49]} Qxd1 {[%clk 01:00:15]} {[%emt
00:00:35]} 30. Rfxd1 {[%clk 00:47:11]} {[%emt 00:00:15]} Rxd1 {[%clk 00:59:31]}
{[%emt 00:01:14]} 31. Rxd1 {[%clk 00:47:32]} {[%emt 00:00:07]} Nxc6 {[%clk
00:59:44]} {[%emt 00:00:19]} 32. e5 {[%clk 00:46:59]} {[%emt 00:01:02]} Rd8
{[%clk 00:57:57]} {[%emt 00:02:18]} 33. Rxd8+ {[%clk 00:45:46]} {[%emt
00:01:43]} Nxd8 {[%clk 00:58:11]} {[%emt 00:00:16]} 34. exf6 {[%clk 00:46:02]}
{[%emt 00:00:13]} g6 {[%clk 00:58:21]} {[%emt 00:00:20]} 35. h4 {[%clk
00:44:58]} {[%emt 00:01:34]} Be6 {[%clk 00:57:35]} {[%emt 00:01:17]} 36. Bf3
{[%clk 00:44:15]} {[%emt 00:01:12]} h5 {[%clk 00:57:18]} {[%emt 00:00:47]} 37.
Kg2 {[%clk 00:43:28]} {[%emt 00:01:17]} Kf7 {[%clk 00:57:20]} {[%emt 00:00:29]}
38. Kf2 {[%clk 00:42:03]} {[%emt 00:01:54]} Bc8 {[%clk 00:57:18]} {[%emt
00:00:32]} 39. Bd5+ {[%clk 00:41:36]} {[%emt 00:00:58]} Be6 {[%clk 00:56:35]}
{[%emt 00:01:13]} 40. Be4 {[%clk 00:41:03]} {[%emt 00:01:02]} Bc8 {[%clk
00:56:14]} {[%emt 00:00:51]} 41. Kf3 {[%clk 00:40:28]} {[%emt 00:01:05]} Bb7
{[%clk 00:49:06]} {[%emt 00:07:39]} 42. Kf4 {[%clk 00:37:48]} {[%emt 00:03:09]}
Bxe4 {[%clk 00:47:59]} {[%emt 00:01:38]} 43. Kxe4 {[%clk 00:35:02]} {[%emt
00:03:15]} Ke6 {[%clk 00:48:07]} {[%emt 00:00:22]} 44. Kf4 {[%clk 00:34:15]}
{[%emt 00:01:17]} Nf7 {[%clk 00:48:07]} {[%emt 00:00:31]} 45. g4 {[%clk
00:31:33]} {[%emt 00:03:11]} Nd6 {[%clk 00:43:18]} {[%emt 00:05:20]} 46. gxh5
{[%clk 00:28:49]} {[%emt 00:03:14]} gxh5 {[%clk 00:43:00]} {[%emt 00:00:47]} 47.
Kg5 {[%clk 00:28:01]} {[%emt 00:01:18]} Ne4+ {[%clk 00:34:00]} {[%emt
00:09:31]} 48. Kg6 {[%clk 00:26:49]} {[%emt 00:01:42]} Ng3 {[%clk 00:32:45]}
{[%emt 00:01:43]} 49. f7 {[%clk 00:26:13]} {[%emt 00:01:07]} Ke7 {[%clk
00:32:39]} {[%emt 00:00:36]} 50. Bf6+ {[%clk 00:26:07]} {[%emt 00:00:37]} Ke6
{[%clk 00:32:07]} {[%emt 00:01:01]} 51. f8=Q {[%clk 00:26:09]} {[%emt
00:00:29]} Ne4 {[%clk 00:32:24]} {[%emt 00:00:13]} 52. Qe7+ {[%clk 00:26:22]}
{[%emt 00:00:17]} Kd5 {[%clk 00:32:43]} {[%emt 00:00:11]} 53. Qe5+ {[%clk
00:26:35]} {[%emt 00:00:17]} Kc4 {[%clk 00:33:01]} {[%emt 00:00:11]} 54. Qxe4+
{[%clk 00:26:47]} {[%emt 00:00:19]} Kb3 {[%clk 00:33:26]} {[%emt 00:00:04]} 55.
Qd3+ {[%clk 00:27:00]} {[%emt 00:00:17]} Ka2 {[%clk 00:33:37]} {[%emt
00:00:20]} 56. Qc3 {[%clk 00:26:57]} {[%emt 00:00:33]} Kb1 {[%clk 00:33:22]}
{[%emt 00:00:44]} 57. Qb2# {[%clk 00:27:19]} {[%emt 00:00:07]} 1-0

[Event "ONJK 2024 ABC"]
[Site "Velp, Netherlands"]
[Date "2024.08.05"]
[Round "4.20"]
[White "Hagen, Maurits"]
[Black "Zouridis, Christian"]
[Result "1/2-1/2"]
[TimeControl "90 minutes + 30 seconds"]
[WhiteElo "1654"]
[BlackElo "1713"]

1. d4 {[%clk 01:30:56]} {[%emt 00:00:03]} d5 {[%clk 01:30:55]} {[%emt
00:00:05]} 2. Bf4 {[%clk 01:31:19]} {[%emt 00:00:07]} Nf6 {[%clk 01:31:19]}
{[%emt 00:00:06]} 3. e3 {[%clk 01:31:43]} {[%emt 00:00:07]} Bf5 {[%clk
01:31:38]} {[%emt 00:00:11]} 4. Bd3 {[%clk 01:31:56]} {[%emt 00:00:17]} Bg6
{[%clk 01:31:23]} {[%emt 00:00:45]} 5. Nf3 {[%clk 01:32:07]} {[%emt 00:00:19]}
Nbd7 {[%clk 01:28:54]} {[%emt 00:02:59]} 6. c3 {[%clk 01:30:31]} {[%emt
00:02:05]} e6 {[%clk 01:26:05]} {[%emt 00:03:20]} 7. Qc2 {[%clk 01:29:28]}
{[%emt 00:01:32]} c5 {[%clk 01:24:09]} {[%emt 00:02:26]} 8. Nbd2 {[%clk
01:22:07]} {[%emt 00:07:51]} Rc8 {[%clk 01:20:24]} {[%emt 00:04:16]} 9. O-O
{[%clk 01:18:30]} {[%emt 00:04:06]} Bxd3 {[%clk 01:14:12]} {[%emt 00:06:42]} 10.
Qxd3 {[%clk 01:18:51]} {[%emt 00:00:09]} c4 {[%clk 01:14:29]} {[%emt 00:00:13]}
11. Qc2 {[%clk 01:19:13]} {[%emt 00:00:08]} Be7 {[%clk 01:12:38]} {[%emt
00:02:20]} 12. b3 {[%clk 01:15:16]} {[%emt 00:04:28]} Nb6 {[%clk 01:05:15]}
{[%emt 00:07:54]} 13. Be5 {[%clk 01:11:15]} {[%emt 00:04:31]} Qd7 {[%clk
00:38:49]} {[%emt 00:26:56]} 14. Rfe1 {[%clk 01:05:59]} {[%emt 00:05:45]} Qc6
{[%clk 00:36:34]} {[%emt 00:02:42]} 15. b4 {[%clk 00:59:32]} {[%emt 00:07:01]}
Qa4 {[%emt 00:04:29]} 16. Ng5 {[%emt 00:00:21]} O-O {[%emt 00:00:11]} 17. h4
{[%emt 00:00:03]} g6 {[%emt 00:00:01]} 1/2-1/2

[Event "ONJK 2024 ABC"]
[Site "Velp, Netherlands"]
[Date "2024.08.05"]
[Round "5.1"]
[White "De Vries, Arjan"]
[Black "Elferink, Leon"]
[Result "1/2-1/2"]
[TimeControl "90 minutes + 30 seconds"]
[WhiteElo "1843"]
[BlackElo "1900"]

1. e4 {[%clk 01:30:59]} e5 {[%clk 01:30:54]} {[%emt 00:00:07]} 2. Nf3 {[%clk
01:31:25]} {[%emt 00:00:03]} Nc6 {[%clk 01:31:17]} {[%emt 00:00:07]} 3. Bc4
{[%clk 01:31:53]} {[%emt 00:00:03]} Bc5 {[%clk 01:31:34]} {[%emt 00:00:14]} 4.
d3 {[%clk 01:32:15]} {[%emt 00:00:08]} h6 {[%clk 01:29:32]} {[%emt 00:02:32]} 5.
c3 {[%clk 01:32:00]} {[%emt 00:00:45]} d6 {[%clk 01:28:55]} {[%emt 00:01:07]} 6.
b4 {[%clk 01:32:03]} {[%emt 00:00:27]} Bb6 {[%clk 01:29:19]} {[%emt 00:00:06]}
7. Qb3 {[%clk 01:31:23]} {[%emt 00:01:10]} Qe7 {[%clk 01:26:21]} {[%emt
00:03:27]} 8. a4 {[%clk 01:28:33]} {[%emt 00:03:21]} a5 {[%clk 01:24:13]}
{[%emt 00:02:39]} 9. Be3 {[%clk 01:25:18]} {[%emt 00:03:44]} Bxe3 {[%clk
01:20:42]} {[%emt 00:04:00]} 10. fxe3 {[%clk 01:25:43]} {[%emt 00:00:05]} Nf6
{[%clk 01:18:53]} {[%emt 00:02:20]} 11. O-O {[%clk 01:25:25]} {[%emt 00:00:48]}
O-O {[%clk 01:18:49]} {[%emt 00:00:34]} 12. Nbd2 {[%clk 01:23:51]} {[%emt
00:02:04]} Be6 {[%clk 01:16:01]} {[%emt 00:03:18]} 13. Bxe6 {[%clk 01:18:53]}
{[%emt 00:05:29]} Qxe6 {[%clk 01:15:12]} {[%emt 00:01:19]} 14. Qxe6 {[%clk
01:19:14]} {[%emt 00:00:09]} fxe6 {[%clk 01:15:37]} {[%emt 00:00:05]} 15. b5
{[%clk 01:19:39]} {[%emt 00:00:06]} Ne7 {[%clk 01:15:53]} {[%emt 00:00:13]} 16.
h3 {[%clk 01:19:10]} {[%emt 00:01:00]} g5 {[%clk 01:12:04]} {[%emt 00:04:18]}
17. g4 {[%clk 01:10:45]} {[%emt 00:08:55]} Ng6 {[%clk 01:09:45]} {[%emt
00:02:50]} 18. d4 {[%clk 01:03:42]} {[%emt 00:07:33]} Nd7 {[%clk 01:07:58]}
{[%emt 00:02:16]} 19. Nc4 {[%clk 01:01:40]} {[%emt 00:02:33]} exd4 {[%clk
01:07:29]} {[%emt 00:00:59]} 20. cxd4 {[%clk 01:01:22]} {[%emt 00:00:47]} e5
{[%clk 01:07:48]} {[%emt 00:00:11]} 21. b6 {[%clk 00:55:55]} {[%emt 00:05:57]}
Nxb6 {[%clk 01:04:48]} {[%emt 00:03:30]} 22. Nxb6 {[%clk 00:56:20]} {[%emt
00:00:06]} cxb6 {[%clk 01:05:10]} {[%emt 00:00:07]} 23. Rab1 {[%clk 00:54:54]}
{[%emt 00:01:56]} exd4 {[%clk 01:04:44]} {[%emt 00:00:56]} 24. Nxd4 {[%clk
00:53:36]} {[%emt 00:01:48]} Rxf1+ {[%clk 01:03:32]} {[%emt 00:01:42]} 25. Kxf1
{[%clk 00:53:55]} {[%emt 00:00:11]} Ne5 {[%clk 01:03:40]} {[%emt 00:00:23]} 26.
Rxb6 {[%clk 00:53:35]} {[%emt 00:00:50]} Nc4 {[%clk 01:03:35]} {[%emt
00:00:34]} 27. Rxb7 {[%clk 00:53:47]} {[%emt 00:00:19]} Nxe3+ {[%clk 01:03:59]}
{[%emt 00:00:06]} 28. Ke2 {[%clk 00:53:35]} {[%emt 00:00:42]} Ng2 {[%clk
01:03:15]} {[%emt 00:01:13]} 29. Nf5 {[%clk 00:52:37]} {[%emt 00:01:29]} Nf4+
{[%clk 01:03:18]} {[%emt 00:00:27]} 30. Ke3 {[%clk 00:51:59]} {[%emt 00:01:07]}
Nxh3 {[%clk 01:03:16]} {[%emt 00:00:32]} 31. Nxh6+ {[%clk 00:52:22]} {[%emt
00:00:07]} Kf8 {[%clk 01:02:24]} {[%emt 00:01:22]} 32. Rd7 {[%clk 00:48:55]}
{[%emt 00:03:57]} Rb8 {[%clk 00:59:45]} {[%emt 00:03:09]} 33. Rxd6 {[%clk
00:47:29]} {[%emt 00:01:56]} Nf4 {[%clk 00:58:58]} {[%emt 00:01:17]} 34. Rf6+
{[%clk 00:45:11]} {[%emt 00:02:48]} Kg7 {[%clk 00:58:40]} {[%emt 00:00:48]} 35.
Ra6 {[%clk 00:45:18]} {[%emt 00:00:24]} Rb3+ {[%clk 00:59:00]} {[%emt
00:00:10]} 36. Kd2 {[%clk 00:45:39]} {[%emt 00:00:09]} Rb4 {[%clk 00:57:40]}
{[%emt 00:01:50]} 37. Nf5+ {[%clk 00:45:42]} {[%emt 00:00:26]} Kh7 {[%clk
00:57:23]} {[%emt 00:00:45]} 38. Rxa5 {[%clk 00:45:05]} {[%emt 00:01:09]} Rxe4
{[%clk 00:57:41]} {[%emt 00:00:12]} 39. Ra7+ {[%clk 00:45:24]} {[%emt
00:00:11]} Kg6 {[%clk 00:56:29]} {[%emt 00:01:42]} 40. Ra6+ {[%clk 00:45:44]}
{[%emt 00:00:10]} Ne6 {[%clk 00:56:21]} {[%emt 00:00:38]} 41. Kd3 {[%clk
00:44:50]} {[%emt 00:01:24]} Rxg4 {[%clk 00:55:23]} {[%emt 00:01:28]} 42. Ne3
{[%clk 00:45:14]} {[%emt 00:00:06]} Rxa4 {[%clk 00:48:50]} {[%emt 00:07:04]} 43.
Rxe6+ {[%clk 00:45:39]} {[%emt 00:00:05]} Kf7 {[%emt 00:00:33]} 44. Rb6 {[%clk
00:45:51]} g4 {[%clk 00:48:55]} {[%emt 00:00:38]} 45. Rb2 {[%clk 00:45:42]}
{[%emt 00:00:40]} Kf6 {[%clk 00:48:53]} {[%emt 00:00:32]} 46. Ke2 {[%clk
00:46:04]} {[%emt 00:00:07]} Kg5 {[%clk 00:48:40]} {[%emt 00:00:43]} 47. Kf2
{[%clk 00:46:29]} {[%emt 00:00:05]} Kf4 {[%clk 00:48:27]} {[%emt 00:00:43]} 48.
Ng2+ {[%clk 00:46:30]} {[%emt 00:00:29]} Ke4 {[%clk 00:48:24]} {[%emt
00:00:34]} 49. Kg3 {[%clk 00:46:45]} {[%emt 00:00:15]} Kd3 {[%clk 00:48:18]}
{[%emt 00:00:35]} 50. Nf4+ {[%clk 00:47:04]} {[%emt 00:00:11]} Kc3 {[%clk
00:48:23]} {[%emt 00:00:25]} 51. Rb7 {[%clk 00:47:16]} {[%emt 00:00:18]} Ra8
{[%clk 00:47:50]} {[%emt 00:01:02]} 52. Kxg4 {[%clk 00:47:42]} {[%emt
00:00:05]} Kd4 {[%clk 00:48:09]} {[%emt 00:00:11]} 53. Rf7 {[%clk 00:47:36]}
{[%emt 00:00:36]} Ke4 {[%clk 00:48:25]} {[%emt 00:00:14]} 54. Re7+ {[%clk
00:48:01]} {[%emt 00:00:06]} Kd4 {[%clk 00:48:50]} {[%emt 00:00:05]} 55. Ne2+
{[%clk 00:48:06]} {[%emt 00:00:24]} Kd3 {[%clk 00:49:10]} {[%emt 00:00:10]} 56.
Kf3 {[%clk 00:48:27]} {[%emt 00:00:09]} Rf8 {[%clk 00:49:32]} {[%emt 00:00:09]}
57. Nf4+ {[%clk 00:48:52]} {[%emt 00:00:04]} Kc4 {[%clk 00:49:54]} {[%emt
00:00:08]} 58. Ke4 {[%clk 00:49:17]} {[%emt 00:00:05]} Rc8 {[%clk 00:49:24]}
{[%emt 00:01:00]} 59. Re5 {[%clk 00:49:22]} {[%emt 00:00:26]} Rc6 {[%clk
00:49:17]} {[%emt 00:00:36]} 60. Rd5 {[%clk 00:49:00]} {[%emt 00:00:52]} Rc8
{[%clk 00:49:07]} {[%emt 00:00:40]} 61. Rd4+ {[%clk 00:48:48]} {[%emt
00:00:43]} Kc5 {[%clk 00:48:35]} {[%emt 00:01:01]} 62. Nd3+ {[%clk 00:49:09]}
{[%emt 00:00:10]} Kc6 {[%clk 00:48:56]} {[%emt 00:00:07]} 63. Ne5+ {[%clk
00:49:17]} {[%emt 00:00:24]} Kb5 {[%clk 00:48:53]} {[%emt 00:00:32]} 64. Rd5+
{[%clk 00:49:19]} {[%emt 00:00:29]} Rc5 {[%clk 00:49:06]} {[%emt 00:00:17]} 65.
Rd1 {[%clk 00:49:43]} {[%emt 00:00:06]} Rc3 {[%clk 00:47:26]} {[%emt 00:02:09]}
66. Kd4 {[%clk 00:50:01]} {[%emt 00:00:14]} Rb3 {[%clk 00:46:42]} {[%emt
00:01:14]} 67. Rc1 {[%clk 00:50:25]} {[%emt 00:00:05]} Kb6 {[%clk 00:45:40]}
{[%emt 00:01:32]} 68. Kd5 {[%clk 00:50:01]} {[%emt 00:00:54]} Kb7 {[%clk
00:45:21]} {[%emt 00:00:48]} 69. Rc4 {[%clk 00:49:39]} {[%emt 00:00:53]} Rb5+
{[%clk 00:44:52]} {[%emt 00:00:58]} 70. Kd6 {[%clk 00:50:05]} {[%emt 00:00:05]}
Rb6+ {[%clk 00:43:55]} {[%emt 00:01:27]} 71. Kd7 {[%clk 00:50:11]} {[%emt
00:00:24]} Rb5 {[%clk 00:42:57]} {[%emt 00:01:28]} 72. Nf7 {[%clk 00:50:24]}
{[%emt 00:00:16]} Rd5 {[%clk 00:38:02]} {[%emt 00:05:26]} 73. Nd6+ {[%clk
00:50:49]} {[%emt 00:00:06]} Kb6 {[%clk 00:38:00]} {[%emt 00:00:32]} 74. Rc6+
{[%clk 00:50:51]} {[%emt 00:00:27]} Ka5 {[%clk 00:38:17]} {[%emt 00:00:13]} 75.
Kc7 {[%clk 00:50:06]} {[%emt 00:01:15]} Kb4 {[%clk 00:37:50]} {[%emt 00:00:57]}
76. Kb6 {[%clk 00:50:02]} {[%emt 00:00:34]} Rd4 {[%clk 00:35:25]} {[%emt
00:02:54]} 77. Nb7 {[%clk 00:49:27]} {[%emt 00:01:05]} Rh4 {[%clk 00:34:41]}
{[%emt 00:01:15]} 78. Nc5 {[%clk 00:49:53]} {[%emt 00:00:05]} Rc4 {[%clk
00:32:38]} {[%emt 00:02:31]} 79. Rc7 {[%clk 00:49:54]} {[%emt 00:00:30]} Rc3
{[%clk 00:30:54]} {[%emt 00:02:15]} 80. Na6+ {[%clk 00:49:31]} {[%emt
00:00:53]} Kb3 {[%clk 00:29:08]} {[%emt 00:02:15]} 81. Nc5+ {[%clk 00:49:53]}
{[%emt 00:00:08]} Kb4 {[%clk 00:29:14]} {[%emt 00:00:25]} 82. Na6+ {[%clk
00:49:49]} {[%emt 00:00:34]} Kb3 {[%clk 00:29:39]} {[%emt 00:00:05]} 83. Rh7
{[%clk 00:50:11]} {[%emt 00:00:07]} Kc4 {[%clk 00:29:24]} {[%emt 00:00:45]} 84.
Nc5 {[%clk 00:50:36]} {[%emt 00:00:05]} Rg3 {[%clk 00:28:51]} {[%emt 00:01:02]}
85. Rh4+ {[%clk 00:50:59]} {[%emt 00:00:09]} Kd5 {[%clk 00:29:00]} {[%emt
00:00:20]} 86. Rh5+ {[%clk 00:51:21]} {[%emt 00:00:10]} Kc4 {[%clk 00:29:06]}
{[%emt 00:00:23]} 87. Rh4+ {[%clk 00:51:43]} {[%emt 00:00:08]} Kd4 {[%clk
00:28:46]} {[%emt 00:00:10]} 1/2-1/2

[Event "ONJK 2024 ABC"]
[Site "Velp, Netherlands"]
[Date "2024.08.05"]
[Round "5.2"]
[White "Musabayeva, Diana"]
[Black "Ganeshram, Nirupa"]
[Result "1-0"]
[TimeControl "90 minutes + 30 seconds"]
[WhiteElo "1871"]
[BlackElo "1695"]

1. e4 {[%clk 01:30:58]} {[%emt 00:00:01]} c5 {[%clk 01:30:54]} {[%emt
00:00:07]} 2. Nf3 {[%clk 01:31:24]} {[%emt 00:00:04]} d6 {[%clk 01:31:18]}
{[%emt 00:00:07]} 3. d4 {[%clk 01:31:50]} {[%emt 00:00:03]} cxd4 {[%clk
01:31:38]} {[%emt 00:00:10]} 4. Nxd4 {[%clk 01:32:15]} {[%emt 00:00:04]} Nf6
{[%clk 01:32:02]} {[%emt 00:00:07]} 5. Nc3 {[%clk 01:32:42]} {[%emt 00:00:03]}
g6 {[%clk 01:32:16]} {[%emt 00:00:16]} 6. f3 {[%clk 01:32:20]} {[%emt
00:00:52]} Bg7 {[%clk 01:32:18]} {[%emt 00:00:28]} 7. Be3 {[%clk 01:31:57]}
{[%emt 00:00:52]} O-O {[%clk 01:32:28]} {[%emt 00:00:21]} 8. Qd2 {[%clk
01:31:02]} {[%emt 00:01:25]} Nc6 {[%clk 01:32:26]} {[%emt 00:00:33]} 9. g4
{[%clk 01:29:12]} {[%emt 00:02:19]} Be6 {[%clk 01:31:38]} {[%emt 00:01:18]} 10.
Nxe6 {[%clk 01:27:11]} {[%emt 00:02:30]} fxe6 {[%clk 01:31:55]} {[%emt
00:00:14]} 11. O-O-O {[%clk 01:25:01]} {[%emt 00:02:40]} Ne5 {[%clk 01:30:52]}
{[%emt 00:01:33]} 12. Be2 {[%clk 01:22:07]} {[%emt 00:03:23]} Rc8 {[%clk
01:25:10]} {[%emt 00:06:13]} 13. Kb1 {[%clk 01:15:36]} {[%emt 00:07:00]} Nc4
{[%clk 01:21:24]} {[%emt 00:04:16]} 14. Bxc4 {[%clk 01:13:13]} {[%emt
00:02:53]} Rxc4 {[%clk 01:21:46]} {[%emt 00:00:09]} 15. h4 {[%clk 01:06:55]}
{[%emt 00:06:47]} Ne8 {[%clk 01:11:43]} {[%emt 00:10:33]} 16. Nb5 {[%clk
01:03:51]} {[%emt 00:03:34]} a6 {[%clk 01:01:39]} {[%emt 00:10:35]} 17. Nd4
{[%clk 01:03:06]} {[%emt 00:01:15]} Qc8 {[%clk 01:00:45]} {[%emt 00:01:24]} 18.
h5 {[%clk 00:59:26]} {[%emt 00:04:10]} Bxd4 {[%clk 00:50:55]} {[%emt 00:10:19]}
19. Bxd4 {[%clk 00:58:44]} {[%emt 00:01:12]} e5 {[%clk 00:50:52]} {[%emt
00:00:33]} 20. Ba7 {[%clk 00:53:27]} {[%emt 00:05:46]} Qe6 {[%clk 00:46:41]}
{[%emt 00:04:41]} 21. hxg6 {[%clk 00:47:58]} {[%emt 00:05:59]} hxg6 {[%clk
00:45:15]} {[%emt 00:01:56]} 22. b3 {[%clk 00:42:55]} {[%emt 00:05:34]} Rc8
{[%clk 00:43:11]} {[%emt 00:02:34]} 23. Qh6 {[%clk 00:43:05]} {[%emt 00:00:19]}
Ng7 {[%clk 00:41:43]} {[%emt 00:01:58]} 24. Rh3 {[%clk 00:42:08]} {[%emt
00:01:27]} Kf7 {[%clk 00:39:46]} {[%emt 00:02:28]} 25. Rdh1 {[%clk 00:41:03]}
{[%emt 00:01:35]} Rh8 {[%clk 00:36:00]} {[%emt 00:04:16]} 26. Qd2 {[%clk
00:36:36]} {[%emt 00:04:56]} Rxh3 {[%clk 00:34:53]} {[%emt 00:01:38]} 27. Rxh3
{[%clk 00:37:04]} {[%emt 00:00:02]} Rf8 {[%clk 00:28:15]} {[%emt 00:07:07]} 28.
Rh7 {[%clk 00:35:01]} {[%emt 00:02:32]} Qc8 {[%clk 00:26:52]} {[%emt 00:01:54]}
29. Qd5+ {[%clk 00:33:19]} {[%emt 00:02:12]} Kf6 {[%clk 00:18:56]} {[%emt
00:08:26]} 30. g5+ {[%clk 00:31:21]} {[%emt 00:02:28]} Kxg5 {[%clk 00:19:21]}
{[%emt 00:00:05]} 31. Rxg7 {[%clk 00:30:56]} {[%emt 00:00:54]} Rxf3 {[%clk
00:18:58]} {[%emt 00:00:55]} 32. Qd2+ {[%clk 00:28:51]} {[%emt 00:02:33]} Kf6
{[%clk 00:18:30]} {[%emt 00:00:58]} 33. Rxg6+ {[%clk 00:28:18]} {[%emt
00:01:03]} Kf7 {[%clk 00:16:47]} {[%emt 00:02:14]} 34. Rg7+ {[%clk 00:27:14]}
{[%emt 00:01:34]} Ke8 {[%clk 00:16:07]} {[%emt 00:01:10]} 35. Qg5 {[%clk
00:24:22]} {[%emt 00:03:21]} Rf1+ {[%clk 00:15:52]} {[%emt 00:00:45]} 36. Kb2
{[%clk 00:24:45]} {[%emt 00:00:06]} Qe6 {[%clk 00:15:11]} {[%emt 00:01:12]} 37.
Rg8+ {[%clk 00:20:43]} {[%emt 00:04:33]} Kd7 {[%clk 00:14:55]} {[%emt
00:00:45]} 38. Qg4 {[%clk 00:20:58]} {[%emt 00:00:14]} Qxg4 {[%clk 00:15:02]}
{[%emt 00:00:24]} 39. Rxg4 {[%clk 00:21:26]} {[%emt 00:00:02]} Rf4 {[%clk
00:14:48]} {[%emt 00:00:44]} 40. Rxf4 {[%clk 00:21:32]} {[%emt 00:00:25]} exf4
{[%clk 00:15:16]} {[%emt 00:00:01]} 41. Kc3 {[%clk 00:20:46]} {[%emt 00:01:16]}
Kc6 {[%clk 00:13:08]} {[%emt 00:02:38]} 42. Bg1 {[%clk 00:20:13]} {[%emt
00:01:03]} e5 {[%clk 00:13:29]} {[%emt 00:00:10]} 43. Kd3 {[%clk 00:19:55]}
{[%emt 00:00:47]} b5 {[%clk 00:13:01]} {[%emt 00:00:58]} 44. a3 {[%clk
00:18:11]} {[%emt 00:02:14]} d5 {[%clk 00:12:09]} {[%emt 00:01:22]} 45. Ba7
{[%clk 00:15:22]} {[%emt 00:03:19]} Kd6 {[%clk 00:11:20]} {[%emt 00:01:19]} 46.
Bb8+ {[%clk 00:15:09]} {[%emt 00:00:42]} Ke6 {[%clk 00:11:40]} {[%emt
00:00:11]} 47. exd5+ {[%clk 00:15:13]} {[%emt 00:00:26]} Kxd5 {[%clk 00:11:31]}
{[%emt 00:00:38]} 48. c4+ {[%clk 00:15:15]} {[%emt 00:00:28]} bxc4+ {[%clk
00:11:23]} {[%emt 00:00:38]} 49. bxc4+ {[%clk 00:15:42]} {[%emt 00:00:03]} Kc5
{[%clk 00:11:30]} {[%emt 00:00:23]} 50. Bxe5 {[%clk 00:15:52]} {[%emt
00:00:20]} f3 {[%clk 00:11:37]} {[%emt 00:00:22]} 51. Bd4+ {[%clk 00:15:56]}
{[%emt 00:00:26]} Kc6 {[%clk 00:11:57]} {[%emt 00:00:11]} 52. Ke3 {[%clk
00:15:41]} {[%emt 00:00:45]} Kc7 {[%clk 00:11:54]} {[%emt 00:00:34]} 53. Kxf3
{[%clk 00:16:01]} {[%emt 00:00:10]} Kc6 {[%clk 00:12:19]} {[%emt 00:00:05]} 54.
Ke4 {[%clk 00:16:16]} {[%emt 00:00:14]} Kd6 {[%clk 00:12:44]} {[%emt 00:00:06]}
55. Kf5 {[%clk 00:16:18]} {[%emt 00:00:27]} Kd7 {[%clk 00:13:06]} {[%emt
00:00:10]} 56. Ke5 {[%clk 00:16:35]} {[%emt 00:00:11]} Kc6 {[%clk 00:13:31]}
{[%emt 00:00:05]} 57. Ke6 {[%clk 00:16:55]} {[%emt 00:00:11]} Kc7 {[%clk
00:13:48]} {[%emt 00:00:13]} 58. Kd5 {[%clk 00:17:11]} {[%emt 00:00:14]} Kd7
{[%clk 00:13:51]} {[%emt 00:00:27]} 59. Be5 {[%clk 00:17:28]} {[%emt 00:00:13]}
Kd8 {[%clk 00:14:02]} {[%emt 00:00:19]} 60. Kc6 {[%clk 00:17:45]} {[%emt
00:00:13]} Kc8 {[%clk 00:14:23]} {[%emt 00:00:09]} 61. Kb6 {[%clk 00:18:07]}
{[%emt 00:00:07]} a5 {[%clk 00:14:42]} {[%emt 00:00:12]} 62. a4 {[%clk
00:18:31]} {[%emt 00:00:06]} Kd7 {[%clk 00:14:56]} {[%emt 00:00:16]} 63. c5
{[%clk 00:18:41]} {[%emt 00:00:19]} Kc8 {[%clk 00:15:21]} {[%emt 00:00:05]} 64.
c6 {[%clk 00:19:07]} {[%emt 00:00:05]} Kd8 {[%clk 00:15:40]} {[%emt 00:00:11]}
65. Kb7 {[%clk 00:19:30]} {[%emt 00:00:07]} 1-0